[Event "*** Titled Tuesday Blitz"]
[Site "Chess.com"]
[Date "2020.04.07"]
[Round "9"]
[White "zmeeed67"]
[Black "tacticthunder"]
[Result "0-1"]
[WhiteElo "2385"]
[BlackElo "2529"]
[TimeControl "180+1"]
[EndTime "14:48:35 PDT"]
[Termination "tacticthunder won by checkmate"]

1. d4 {[%clk 0:03:00.9]} 1... Nf6 {[%clk 0:02:59.2]} 2. c4 {[%clk 0:03:01.3]}
2... e6 {[%clk 0:02:59.4]} 3. Nc3 {[%clk 0:03:01.8]} 3... Bb4 {[%clk 0:02:59.7]}
4. f3 {[%clk 0:03:02.4]} 4... O-O {[%clk 0:02:59.5]} 5. e4 {[%clk 0:03:02]} 5...
c5 {[%clk 0:02:59.5]} 6. d5 {[%clk 0:03:01.9]} 6... d6 {[%clk 0:02:57.9]} 7. Ne2
{[%clk 0:03:00.5]} 7... b5 {[%clk 0:02:57.6]} 8. Ng3 {[%clk 0:02:58]} 8... bxc4
{[%clk 0:02:56.7]} 9. Bxc4 {[%clk 0:02:57.6]} 9... Ba6 {[%clk 0:02:46.6]} 10.
Bxa6 {[%clk 0:02:45.4]} 10... Nxa6 {[%clk 0:02:47.5]} 11. O-O {[%clk 0:02:45.3]}
11... Nc7 {[%clk 0:02:41.1]} 12. dxe6 {[%clk 0:02:39.1]} 12... fxe6 {[%clk
0:02:40.8]} 13. a3 {[%clk 0:02:09.4]} 13... Ba5 {[%clk 0:02:36.4]} 14. e5 {[%clk
0:02:09.4]} 14... dxe5 {[%clk 0:02:33.2]} 15. Qe2 {[%clk 0:02:05.9]} 15... Ncd5
{[%clk 0:02:29]} 16. Qxe5 {[%clk 0:01:49.2]} 16... Re8 {[%clk 0:02:27.4]} 17.
Nce4 {[%clk 0:01:28.3]} 17... Bc7 {[%clk 0:02:16.2]} 18. Qg5 {[%clk 0:01:23.2]}
18... h6 {[%clk 0:02:14.7]} 19. Qd2 {[%clk 0:01:08]} 19... Be5 {[%clk
0:02:11.4]} 20. Kh1 {[%clk 0:00:57]} 20... Qb6 {[%clk 0:01:58]} 21. Rb1 {[%clk
0:00:55.4]} 21... Rad8 {[%clk 0:01:53.2]} 22. Qe2 {[%clk 0:00:55.5]} 22... a6
{[%clk 0:01:39.3]} 23. Bd2 {[%clk 0:00:39.9]} 23... Bd4 {[%clk 0:01:37.5]} 24.
b4 {[%clk 0:00:29]} 24... cxb4 {[%clk 0:01:31.4]} 25. Bxb4 {[%clk 0:00:28.6]}
25... Nxb4 {[%clk 0:01:04.5]} 26. Rxb4 {[%clk 0:00:27.5]} 26... Qa7 {[%clk
0:01:03.3]} 27. Nxf6+ {[%clk 0:00:24.6]} 27... Bxf6 {[%clk 0:01:04.2]} 28. Ne4
{[%clk 0:00:23.5]} 28... Bd4 {[%clk 0:01:01.2]} 29. Rfb1 {[%clk 0:00:18.1]}
29... Rd7 {[%clk 0:00:56.3]} 30. h3 {[%clk 0:00:16.2]} 30... Qa8 {[%clk
0:00:51.7]} 31. Rd1 {[%clk 0:00:08.6]} 31... e5 {[%clk 0:00:47.9]} 32. Rdb1
{[%clk 0:00:06]} 32... a5 {[%clk 0:00:47]} 33. Rb5 {[%clk 0:00:05.7]} 33... Kh8
{[%clk 0:00:44.7]} 34. a4 {[%clk 0:00:05.9]} 34... Qa7 {[%clk 0:00:41.4]} 35.
Ng3 {[%clk 0:00:05.7]} 35... Qc7 {[%clk 0:00:39]} 36. Qe4 {[%clk 0:00:05.4]}
36... Rf8 {[%clk 0:00:36.3]} 37. Nf5 {[%clk 0:00:05.1]} 37... Qc8 {[%clk
0:00:27.8]} 38. Nh4 {[%clk 0:00:04.6]} 38... Re8 {[%clk 0:00:16.1]} 39. Ng6+
{[%clk 0:00:05]} 39... Kg8 {[%clk 0:00:16.5]} 40. Rd5 {[%clk 0:00:03.6]} 40...
Qc6 {[%clk 0:00:11.8]} 41. Rxd7 {[%clk 0:00:03.5]} 41... Qxd7 {[%clk 0:00:12.7]}
42. Nh4 {[%clk 0:00:03.5]} 42... Qf7 {[%clk 0:00:11.5]} 43. Rb7 {[%clk
0:00:03.7]} 43... Re7 {[%clk 0:00:08.3]} 44. Rxe7 {[%clk 0:00:03.2]} 44... Qxe7
{[%clk 0:00:09.2]} 45. Qa8+ {[%clk 0:00:03.6]} 45... Kf7 {[%clk 0:00:08.2]} 46.
Nf5 {[%clk 0:00:02.9]} 46... Qc7 {[%clk 0:00:05.4]} 47. Nxd4 {[%clk 0:00:02.5]}
47... exd4 {[%clk 0:00:05.4]} 48. Qd5+ {[%clk 0:00:03]} 48... Kf6 {[%clk
0:00:05.3]} 49. Qxd4+ {[%clk 0:00:03.4]} 49... Kg6 {[%clk 0:00:05.5]} 50. Qe4+
{[%clk 0:00:03.7]} 50... Kf7 {[%clk 0:00:06]} 51. h4 {[%clk 0:00:04.3]} 51... h5
{[%clk 0:00:06.2]} 52. g3 {[%clk 0:00:04.5]} 52... g6 {[%clk 0:00:06.4]} 53. Kg2
{[%clk 0:00:04.3]} 53... Qc3 {[%clk 0:00:05.9]} 54. Qd5+ {[%clk 0:00:03.4]}
54... Kg7 {[%clk 0:00:05.8]} 55. Qb5 {[%clk 0:00:03.4]} 55... Qd2+ {[%clk
0:00:05.8]} 56. Kh3 {[%clk 0:00:03.7]} 56... Qe1 {[%clk 0:00:05.9]} 57. Qd5
{[%clk 0:00:02.7]} 57... Qh1# {[%clk 0:00:05.6]} 0-1

[Event "*** Titled Tuesday Blitz"]
[Site "Chess.com"]
[Date "2020.04.07"]
[Round "9"]
[White "Rish_97"]
[Black "BillieKimbah"]
[Result "1-0"]
[WhiteElo "2588"]
[BlackElo "2828"]
[TimeControl "180+1"]
[EndTime "14:48:40 PDT"]
[Termination "Rish_97 won on time"]

1. e4 {[%clk 0:03:00]} 1... c5 {[%clk 0:02:59.6]} 2. Nf3 {[%clk 0:02:59.6]} 2...
Nc6 {[%clk 0:02:59.4]} 3. Bb5 {[%clk 0:02:59]} 3... g6 {[%clk 0:02:57.7]} 4. O-O
{[%clk 0:02:58.3]} 4... Bg7 {[%clk 0:02:54.7]} 5. c3 {[%clk 0:02:58.5]} 5... Nf6
{[%clk 0:02:50.3]} 6. Re1 {[%clk 0:02:56.2]} 6... O-O {[%clk 0:02:44.1]} 7. d4
{[%clk 0:02:55.8]} 7... a6 {[%clk 0:02:33.2]} 8. Bxc6 {[%clk 0:02:55.1]} 8...
dxc6 {[%clk 0:02:31]} 9. h3 {[%clk 0:02:54.9]} 9... cxd4 {[%clk 0:02:30.6]} 10.
cxd4 {[%clk 0:02:54.6]} 10... c5 {[%clk 0:02:31.1]} 11. d5 {[%clk 0:02:54.7]}
11... b5 {[%clk 0:02:31.7]} 12. Nc3 {[%clk 0:02:34.4]} 12... Bb7 {[%clk
0:02:31.4]} 13. Bg5 {[%clk 0:02:28]} 13... h6 {[%clk 0:02:25.4]} 14. Bf4 {[%clk
0:02:27.4]} 14... Nh5 {[%clk 0:02:23.3]} 15. Be5 {[%clk 0:02:25.3]} 15... Nf6
{[%clk 0:02:22.1]} 16. Rc1 {[%clk 0:02:22.6]} 16... Rc8 {[%clk 0:02:20.7]} 17.
Qd2 {[%clk 0:02:19.6]} 17... Qd7 {[%clk 0:02:20.2]} 18. b3 {[%clk 0:02:18.9]}
18... Rfd8 {[%clk 0:02:19.7]} 19. Bf4 {[%clk 0:02:04]} 19... g5 {[%clk
0:02:15.7]} 20. Ne5 {[%clk 0:02:03.1]} 20... Qe8 {[%clk 0:02:15]} 21. Bh2 {[%clk
0:02:02.4]} 21... e6 {[%clk 0:02:15.4]} 22. d6 {[%clk 0:01:57.6]} 22... Qf8
{[%clk 0:01:36.1]} 23. Ng4 {[%clk 0:01:37.7]} 23... Nd7 {[%clk 0:01:31.8]} 24.
e5 {[%clk 0:01:23.7]} 24... h5 {[%clk 0:01:28.4]} 25. Ne3 {[%clk 0:00:51.7]}
25... Nxe5 {[%clk 0:01:26.7]} 26. Ned5 {[%clk 0:00:35.7]} 26... Ng6 {[%clk
0:00:59.6]} 27. Qxg5 {[%clk 0:00:12.6]} 27... exd5 {[%clk 0:00:58.7]} 28. Nxd5
{[%clk 0:00:13.5]} 28... Bxd5 {[%clk 0:00:56.9]} 29. Qxd5 {[%clk 0:00:14.4]}
29... Bd4 {[%clk 0:00:45.1]} 30. b4 {[%clk 0:00:14.2]} 30... Bb2 {[%clk
0:00:34.2]} 31. Rc2 {[%clk 0:00:13.8]} 31... Qg7 {[%clk 0:00:29.2]} 32. bxc5
{[%clk 0:00:13.7]} 32... Re8 {[%clk 0:00:29]} 33. Rce2 {[%clk 0:00:11.9]} 33...
Rxe2 {[%clk 0:00:23.5]} 34. Rxe2 {[%clk 0:00:12.8]} 34... Bf6 {[%clk 0:00:22.8]}
35. d7 {[%clk 0:00:12.2]} 35... Rf8 {[%clk 0:00:21.7]} 36. Bc7 {[%clk
0:00:11.7]} 36... Nh4 {[%clk 0:00:17.9]} 37. Bg3 {[%clk 0:00:08.7]} 37... Ng6
{[%clk 0:00:11.3]} 38. c6 {[%clk 0:00:09]} 38... h4 {[%clk 0:00:11]} 39. Bd6
{[%clk 0:00:08.2]} 39... Qh6 {[%clk 0:00:04.6]} 40. Bxf8 {[%clk 0:00:05.7]}
40... Qc1+ {[%clk 0:00:05]} 41. Kh2 {[%clk 0:00:06.1]} 41... Qf4+ {[%clk
0:00:04.8]} 42. g3 {[%clk 0:00:06.5]} 42... hxg3+ {[%clk 0:00:05.3]} 43. fxg3
{[%clk 0:00:07.4]} 43... Qf1 {[%clk 0:00:05]} 44. Qg2 {[%clk 0:00:06.5]} 44...
Qf5 {[%clk 0:00:04.9]} 45. Bd6 {[%clk 0:00:05.7]} 45... Kg7 {[%clk 0:00:03.8]}
46. g4 {[%clk 0:00:04.7]} 46... Qd3 {[%clk 0:00:03.2]} 47. Bg3 {[%clk
0:00:03.4]} 47... Qc3 {[%clk 0:00:02.5]} 48. Rd2 {[%clk 0:00:03.7]} 48... Qxc6
{[%clk 0:00:02.4]} 49. Qxc6 {[%clk 0:00:02.7]} 49... Nh4 {[%clk 0:00:01.9]} 50.
Qxf6+ {[%clk 0:00:03]} 50... Kxf6 {[%clk 0:00:01.6]} 51. d8=Q+ {[%clk
0:00:03.9]} 1-0

[Event "*** Titled Tuesday Blitz"]
[Site "Chess.com"]
[Date "2020.04.07"]
[Round "9"]
[White "Gentlejimmy7"]
[Black "anon219"]
[Result "1-0"]
[WhiteElo "2648"]
[BlackElo "2795"]
[TimeControl "180+1"]
[EndTime "14:48:53 PDT"]
[Termination "Gentlejimmy7 won by resignation"]

1. d4 {[%clk 0:03:00.9]} 1... Nf6 {[%clk 0:02:59.7]} 2. g3 {[%clk 0:02:59.5]}
2... d5 {[%clk 0:02:59]} 3. Bg2 {[%clk 0:02:57.2]} 3... e6 {[%clk 0:02:59.4]} 4.
Nf3 {[%clk 0:02:57]} 4... c5 {[%clk 0:02:59.4]} 5. O-O {[%clk 0:02:57.4]} 5...
cxd4 {[%clk 0:02:59.9]} 6. Nxd4 {[%clk 0:02:56.9]} 6... e5 {[%clk 0:03:00.5]} 7.
Nb3 {[%clk 0:02:55.8]} 7... Be6 {[%clk 0:03:00.7]} 8. e4 {[%clk 0:02:54.4]} 8...
Nxe4 {[%clk 0:02:53.1]} 9. Bxe4 {[%clk 0:02:50.5]} 9... dxe4 {[%clk 0:02:54]}
10. Qxd8+ {[%clk 0:02:48.7]} 10... Kxd8 {[%clk 0:02:54.9]} 11. Nc3 {[%clk
0:02:41.7]} 11... f5 {[%clk 0:02:53.8]} 12. Bg5+ {[%clk 0:02:41.4]} 12... Kc8
{[%clk 0:02:50.8]} 13. a4 {[%clk 0:01:59.7]} 13... Nc6 {[%clk 0:02:47.6]} 14.
Rfd1 {[%clk 0:01:50.3]} 14... h6 {[%clk 0:02:45.9]} 15. Be3 {[%clk 0:01:48.2]}
15... g5 {[%clk 0:01:55]} 16. Nb5 {[%clk 0:01:43.2]} 16... f4 {[%clk 0:01:51.1]}
17. Bc5 {[%clk 0:01:42.3]} 17... Bxb3 {[%clk 0:01:49.5]} 18. Bxf8 {[%clk
0:01:40]} 18... Bxc2 {[%clk 0:01:45.3]} 19. Bg7 {[%clk 0:01:25.1]} 19... Rh7
{[%clk 0:01:39.4]} 20. Rdc1 {[%clk 0:01:19.7]} 20... Rxg7 {[%clk 0:01:31.5]} 21.
Rxc2 {[%clk 0:01:19.9]} 21... Rd7 {[%clk 0:01:22]} 22. Re1 {[%clk 0:01:11.6]}
22... a6 {[%clk 0:01:06.8]} 23. Rxe4 {[%clk 0:01:07.7]} 23... f3 {[%clk
0:00:56.1]} 24. Re1 {[%clk 0:01:04.2]} 24... Kb8 {[%clk 0:00:54.2]} 25. Na3
{[%clk 0:01:02]} 25... Kc7 {[%clk 0:00:50.1]} 26. b4 {[%clk 0:00:47.4]} 26... g4
{[%clk 0:00:23.4]} 27. Nc4 {[%clk 0:00:40.7]} 27... Nd4 {[%clk 0:00:21.5]} 28.
Rcc1 {[%clk 0:00:33]} 28... Ne2+ {[%clk 0:00:16.5]} 29. Rxe2 {[%clk 0:00:33.2]}
29... fxe2 {[%clk 0:00:17.4]} 30. Nxe5+ {[%clk 0:00:32.2]} 30... Kd6 {[%clk
0:00:17.3]} 31. Nxd7 {[%clk 0:00:29.2]} 31... Kxd7 {[%clk 0:00:18.2]} 32. Re1
{[%clk 0:00:25.9]} 32... Re8 {[%clk 0:00:18.6]} 33. Kg2 {[%clk 0:00:26.8]} 33...
Kd6 {[%clk 0:00:18.7]} 34. f3 {[%clk 0:00:25.2]} 34... Kd5 {[%clk 0:00:15.2]}
35. Kf2 {[%clk 0:00:22.2]} 35... Kd4 {[%clk 0:00:15.7]} 36. Rxe2 {[%clk
0:00:18.7]} 36... Rxe2+ {[%clk 0:00:13.6]} 37. Kxe2 {[%clk 0:00:19.6]} 37... h5
{[%clk 0:00:13.2]} 38. f4 {[%clk 0:00:16.6]} 38... b5 {[%clk 0:00:11.7]} 39.
axb5 {[%clk 0:00:14.9]} 39... axb5 {[%clk 0:00:12.6]} 40. Kd2 {[%clk 0:00:13.9]}
40... Kc4 {[%clk 0:00:12.4]} 41. f5 {[%clk 0:00:08.6]} 41... Kd5 {[%clk
0:00:12.8]} 42. Kd3 {[%clk 0:00:07.6]} 42... Ke5 {[%clk 0:00:13.3]} 43. Ke3
{[%clk 0:00:03.2]} 43... Kxf5 {[%clk 0:00:13.2]} 44. Kd4 {[%clk 0:00:03.7]}
44... h4 {[%clk 0:00:13.2]} 45. Kc5 {[%clk 0:00:04]} 45... h3 {[%clk 0:00:13]}
46. Kxb5 {[%clk 0:00:04.4]} 46... Ke4 {[%clk 0:00:13.6]} 47. Kc4 {[%clk
0:00:05]} 47... Kf3 {[%clk 0:00:14.3]} 48. b5 {[%clk 0:00:05.9]} 48... Kg2
{[%clk 0:00:14.8]} 49. b6 {[%clk 0:00:06.8]} 49... Kxh2 {[%clk 0:00:15.4]} 50.
b7 {[%clk 0:00:07.7]} 50... Kg2 {[%clk 0:00:14.2]} 51. b8=Q {[%clk 0:00:08.4]}
51... h2 {[%clk 0:00:14.8]} 52. Qb2+ {[%clk 0:00:07.5]} 52... Kxg3 {[%clk
0:00:15.1]} 53. Qe5+ {[%clk 0:00:07.8]} 53... Kg2 {[%clk 0:00:15.3]} 54. Qe2+
{[%clk 0:00:07.4]} 54... Kh3 {[%clk 0:00:15.3]} 55. Qe4 {[%clk 0:00:05.6]} 55...
g3 {[%clk 0:00:14.2]} 56. Qf3 {[%clk 0:00:05]} 56... Kh4 {[%clk 0:00:11.9]} 57.
Qg2 {[%clk 0:00:05.2]} 57... Kg4 {[%clk 0:00:11.7]} 58. Kd4 {[%clk 0:00:05.5]}
58... Kf4 {[%clk 0:00:12.1]} 59. Kd3 {[%clk 0:00:05.2]} 59... Kg4 {[%clk
0:00:12.2]} 60. Ke4 {[%clk 0:00:05.2]} 60... Kh4 {[%clk 0:00:12.3]} 61. Kf4
{[%clk 0:00:04.3]} 61... Kh5 {[%clk 0:00:12.7]} 62. Kxg3 {[%clk 0:00:03.1]} 1-0

[Event "*** Titled Tuesday Blitz"]
[Site "Chess.com"]
[Date "2020.04.07"]
[Round "9"]
[White "dennisodessa"]
[Black "talman67"]
[Result "0-1"]
[WhiteElo "2324"]
[BlackElo "2542"]
[TimeControl "180+1"]
[EndTime "14:48:56 PDT"]
[Termination "talman67 won by resignation"]

1. d4 {[%clk 0:02:59.2]} 1... Nf6 {[%clk 0:02:59.7]} 2. c4 {[%clk 0:02:57.4]}
2... e6 {[%clk 0:02:59.9]} 3. Nc3 {[%clk 0:02:56.5]} 3... Bb4 {[%clk 0:02:59.9]}
4. Qc2 {[%clk 0:02:56.6]} 4... O-O {[%clk 0:02:58.7]} 5. a3 {[%clk 0:02:56.7]}
5... Bxc3+ {[%clk 0:02:57.6]} 6. Qxc3 {[%clk 0:02:57.6]} 6... d5 {[%clk
0:02:57.9]} 7. Bg5 {[%clk 0:02:56.8]} 7... c5 {[%clk 0:02:56.6]} 8. cxd5 {[%clk
0:02:44.3]} 8... cxd4 {[%clk 0:02:46.8]} 9. Qxd4 {[%clk 0:02:45.2]} 9... Nc6
{[%clk 0:02:41.9]} 10. Qd2 {[%clk 0:02:45.2]} 10... Qxd5 {[%clk 0:02:36.8]} 11.
Qxd5 {[%clk 0:02:39.4]} 11... Nxd5 {[%clk 0:02:37.7]} 12. e3 {[%clk 0:02:35.6]}
12... e5 {[%clk 0:02:31.8]} 13. Nf3 {[%clk 0:02:32.3]} 13... f6 {[%clk
0:02:31.3]} 14. Bh4 {[%clk 0:02:32.2]} 14... Be6 {[%clk 0:02:31.1]} 15. Bc4
{[%clk 0:02:27.5]} 15... Kf7 {[%clk 0:02:27.6]} 16. O-O {[%clk 0:02:21.4]} 16...
Nb6 {[%clk 0:02:26.2]} 17. Bxe6+ {[%clk 0:02:12.8]} 17... Kxe6 {[%clk
0:02:27.1]} 18. Nd2 {[%clk 0:02:13.2]} 18... Rfd8 {[%clk 0:02:14.7]} 19. Ne4
{[%clk 0:02:13.1]} 19... Rd5 {[%clk 0:02:03.7]} 20. Rac1 {[%clk 0:02:07.1]}
20... Ke7 {[%clk 0:01:58.8]} 21. Nc5 {[%clk 0:02:04.2]} 21... Nd8 {[%clk
0:01:58.8]} 22. f4 {[%clk 0:01:57.7]} 22... Rc8 {[%clk 0:01:51.1]} 23. b4 {[%clk
0:01:57.3]} 23... Ne6 {[%clk 0:01:41.8]} 24. e4 {[%clk 0:00:58.7]} 24... Rd2
{[%clk 0:01:16]} 25. fxe5 {[%clk 0:00:58.5]} 25... Rf8 {[%clk 0:01:00]} 26. Nxb7
{[%clk 0:00:47.3]} 26... g5 {[%clk 0:00:51.8]} 27. Bg3 {[%clk 0:00:35.5]} 27...
fxe5 {[%clk 0:00:35.1]} 28. Rxf8 {[%clk 0:00:36.4]} 28... Kxf8 {[%clk
0:00:32.8]} 29. Bxe5 {[%clk 0:00:36.6]} 29... Nd7 {[%clk 0:00:20.4]} 30. Bg3
{[%clk 0:00:19.7]} 30... Nd4 {[%clk 0:00:19.7]} 31. Rf1+ {[%clk 0:00:13.5]}
31... Ke7 {[%clk 0:00:17.2]} 32. Nc5 {[%clk 0:00:14.4]} 32... Nxc5 {[%clk
0:00:14.2]} 33. bxc5 {[%clk 0:00:15.3]} 33... Ne2+ {[%clk 0:00:13.9]} 34. Kh1
{[%clk 0:00:15.7]} 34... Nxg3+ {[%clk 0:00:10.9]} 35. hxg3 {[%clk 0:00:16.6]}
35... Rc2 {[%clk 0:00:11.8]} 36. Rb1 {[%clk 0:00:08]} 36... a5 {[%clk
0:00:07.4]} 37. Rb7+ {[%clk 0:00:08.4]} 37... Ke6 {[%clk 0:00:07.1]} 38. Rxh7
{[%clk 0:00:06.3]} 38... Rxc5 {[%clk 0:00:07]} 39. Rg7 {[%clk 0:00:04.4]} 39...
Kf6 {[%clk 0:00:06.7]} 40. Ra7 {[%clk 0:00:04.8]} 40... Ke5 {[%clk 0:00:06.3]}
41. Re7+ {[%clk 0:00:04.6]} 41... Kf6 {[%clk 0:00:06.3]} 42. Ra7 {[%clk
0:00:01.6]} 42... Ke5 {[%clk 0:00:06.1]} 43. Re7+ {[%clk 0:00:02.1]} 43... Kd4
{[%clk 0:00:06.6]} 44. Ra7 {[%clk 0:00:03]} 44... Kxe4 {[%clk 0:00:06.3]} 45.
Kh2 {[%clk 0:00:03.5]} 45... Kd3 {[%clk 0:00:03.6]} 46. Kh3 {[%clk 0:00:03.2]}
46... Kc3 {[%clk 0:00:03.7]} 47. Kg4 {[%clk 0:00:03.6]} 47... Kb3 {[%clk
0:00:04.2]} 48. Rg7 {[%clk 0:00:03.9]} 48... Kxa3 {[%clk 0:00:04.3]} 49. Rxg5
{[%clk 0:00:04.5]} 49... Rxg5+ {[%clk 0:00:03.5]} 50. Kxg5 {[%clk 0:00:05.4]}
50... Kb4 {[%clk 0:00:04.1]} 51. Kh6 {[%clk 0:00:05.8]} 51... a4 {[%clk
0:00:05]} 52. g4 {[%clk 0:00:06.3]} 52... a3 {[%clk 0:00:05.9]} 53. g5 {[%clk
0:00:06.9]} 53... a2 {[%clk 0:00:06.8]} 54. g6 {[%clk 0:00:07.4]} 54... a1=Q
{[%clk 0:00:07.1]} 55. g7 {[%clk 0:00:07.9]} 55... Qf6+ {[%clk 0:00:06.9]} 56.
Kh7 {[%clk 0:00:07.8]} 56... Qf5+ {[%clk 0:00:07.3]} 57. Kh8 {[%clk 0:00:07.4]}
57... Qh5+ {[%clk 0:00:06.6]} 58. Kg8 {[%clk 0:00:07.6]} 58... Kc5 {[%clk
0:00:07.5]} 59. Kf8 {[%clk 0:00:06]} 59... Qf5+ {[%clk 0:00:07.6]} 60. Ke7
{[%clk 0:00:05.9]} 60... Qg6 {[%clk 0:00:08]} 61. Kf8 {[%clk 0:00:06]} 61...
Qf6+ {[%clk 0:00:08.5]} 62. Kg8 {[%clk 0:00:06.9]} 62... Kd6 {[%clk 0:00:09]}
63. g4 {[%clk 0:00:07.6]} 63... Ke7 {[%clk 0:00:08.2]} 64. g5 {[%clk 0:00:06.4]}
64... Qxg5 {[%clk 0:00:08.5]} 65. Kh8 {[%clk 0:00:06.7]} 65... Kf7 {[%clk
0:00:08.9]} 0-1

[Event "*** Titled Tuesday Blitz"]
[Site "Chess.com"]
[Date "2020.04.07"]
[Round "9"]
[White "hongnhung1234"]
[Black "AndrewDGreen"]
[Result "0-1"]
[WhiteElo "2172"]
[BlackElo "2327"]
[TimeControl "180+1"]
[EndTime "14:48:58 PDT"]
[Termination "AndrewDGreen won by checkmate"]

1. e4 {[%clk 0:03:00.9]} 1... c5 {[%clk 0:02:59.1]} 2. Nc3 {[%clk 0:03:00.6]}
2... g6 {[%clk 0:02:58.7]} 3. f4 {[%clk 0:03:00.7]} 3... Bg7 {[%clk 0:02:58.5]}
4. Nf3 {[%clk 0:03:01.1]} 4... Nc6 {[%clk 0:02:58.7]} 5. Bc4 {[%clk 0:03:01.5]}
5... e6 {[%clk 0:02:58.4]} 6. O-O {[%clk 0:03:01.1]} 6... Nge7 {[%clk 0:02:58]}
7. d3 {[%clk 0:03:01.5]} 7... O-O {[%clk 0:02:56.6]} 8. Qe1 {[%clk 0:03:01.3]}
8... d5 {[%clk 0:02:53.3]} 9. Bb3 {[%clk 0:03:00.3]} 9... Na5 {[%clk 0:02:51.9]}
10. f5 {[%clk 0:02:53.6]} 10... Nxb3 {[%clk 0:02:48.3]} 11. axb3 {[%clk
0:02:53]} 11... exf5 {[%clk 0:02:47.3]} 12. Qh4 {[%clk 0:02:43.9]} 12... dxe4
{[%clk 0:02:25.5]} 13. dxe4 {[%clk 0:02:43.5]} 13... fxe4 {[%clk 0:02:14.8]} 14.
Ng5 {[%clk 0:02:42.1]} 14... h6 {[%clk 0:02:07.7]} 15. Ngxe4 {[%clk 0:02:41]}
15... Nf5 {[%clk 0:02:00.5]} 16. Qxd8 {[%clk 0:02:35]} 16... Rxd8 {[%clk
0:02:00.2]} 17. Bf4 {[%clk 0:02:32.7]} 17... Be6 {[%clk 0:01:41.9]} 18. g3
{[%clk 0:02:23.1]} 18... b6 {[%clk 0:01:37.6]} 19. Rfd1 {[%clk 0:02:14.2]} 19...
Nd4 {[%clk 0:01:30]} 20. Kg2 {[%clk 0:01:57]} 20... Nxc2 {[%clk 0:01:25.4]} 21.
Rxd8+ {[%clk 0:01:56.4]} 21... Rxd8 {[%clk 0:01:22.2]} 22. Rxa7 {[%clk
0:01:57.3]} 22... Bxb3 {[%clk 0:01:06]} 23. Bc7 {[%clk 0:01:53.5]} 23... Re8
{[%clk 0:01:01]} 24. Bxb6 {[%clk 0:01:52.7]} 24... Bd4 {[%clk 0:00:53.2]} 25.
Nxc5 {[%clk 0:01:36.8]} 25... Rb8 {[%clk 0:00:32]} 26. Nxb3 {[%clk 0:01:29]}
26... Bxb6 {[%clk 0:00:31.5]} 27. Rd7 {[%clk 0:01:28.8]} 27... Ne3+ {[%clk
0:00:27.1]} 28. Kf3 {[%clk 0:01:28.5]} 28... Nc4 {[%clk 0:00:27.3]} 29. Kg2
{[%clk 0:01:16.8]} 29... Nxb2 {[%clk 0:00:25.2]} 30. Nd5 {[%clk 0:01:11.8]}
30... Bd8 {[%clk 0:00:19.5]} 31. Nd4 {[%clk 0:01:11.2]} 31... Nc4 {[%clk
0:00:14]} 32. Kh3 {[%clk 0:01:08]} 32... Ne5 {[%clk 0:00:14.1]} 33. Ra7 {[%clk
0:01:06]} 33... Bg5 {[%clk 0:00:12.2]} 34. Nc3 {[%clk 0:00:56.6]} 34... h5
{[%clk 0:00:11.7]} 35. Ne4 {[%clk 0:00:56]} 35... Be3 {[%clk 0:00:07.4]} 36. Nc2
{[%clk 0:00:52.7]} 36... Bxa7 {[%clk 0:00:06.8]} 37. Nf6+ {[%clk 0:00:52.9]}
37... Kg7 {[%clk 0:00:06.9]} 38. Nd5 {[%clk 0:00:53.8]} 38... Bc5 {[%clk
0:00:06.6]} 39. Nf4 {[%clk 0:00:51.8]} 39... Bf8 {[%clk 0:00:06.8]} 40. Nd4
{[%clk 0:00:50.1]} 40... Nd7 {[%clk 0:00:07.3]} 41. Nc6 {[%clk 0:00:49.4]} 41...
Rb2 {[%clk 0:00:06.7]} 42. Nd4 {[%clk 0:00:48.8]} 42... Nf6 {[%clk 0:00:06.8]}
43. Nf3 {[%clk 0:00:48.9]} 43... Ng4 {[%clk 0:00:06.7]} 44. Nd3 {[%clk
0:00:47.7]} 44... Ra2 {[%clk 0:00:06.4]} 45. Nf4 {[%clk 0:00:42]} 45... Bc5
{[%clk 0:00:06.5]} 46. Ng2 {[%clk 0:00:41.4]} 46... Nf2+ {[%clk 0:00:05.7]} 47.
Kh4 {[%clk 0:00:41.2]} 47... Be7+ {[%clk 0:00:06.4]} 48. Ng5 {[%clk 0:00:40.1]}
48... Ra4+ {[%clk 0:00:06.4]} 49. Nf4 {[%clk 0:00:39.2]} 49... Ne4 {[%clk
0:00:06.6]} 50. Kh3 {[%clk 0:00:30.5]} 50... Bxg5 {[%clk 0:00:07.5]} 51. Nd5
{[%clk 0:00:27.9]} 51... Nf2+ {[%clk 0:00:07.1]} 52. Kg2 {[%clk 0:00:27.9]}
52... Ng4 {[%clk 0:00:07.7]} 53. h4 {[%clk 0:00:27.7]} 53... Ne3+ {[%clk
0:00:07.9]} 54. Kh3 {[%clk 0:00:24.7]} 54... Nxd5 {[%clk 0:00:07.9]} 55. hxg5
{[%clk 0:00:25.1]} 55... Ne3 {[%clk 0:00:08.2]} 56. Kh2 {[%clk 0:00:24.2]} 56...
Nf5 {[%clk 0:00:08.8]} 57. Kh3 {[%clk 0:00:25.1]} 57... Rg4 {[%clk 0:00:09.4]}
58. Kh2 {[%clk 0:00:25.5]} 58... Rxg3 {[%clk 0:00:09.6]} 59. Kh1 {[%clk
0:00:26]} 59... Rxg5 {[%clk 0:00:09.9]} 60. Kh2 {[%clk 0:00:26.2]} 60... Nh6
{[%clk 0:00:10.4]} 61. Kh3 {[%clk 0:00:25.9]} 61... f5 {[%clk 0:00:11]} 62. Kh4
{[%clk 0:00:26.1]} 62... Rg4+ {[%clk 0:00:11.4]} 63. Kh3 {[%clk 0:00:26.3]}
63... f4 {[%clk 0:00:12]} 64. Kh2 {[%clk 0:00:26.7]} 64... f3 {[%clk 0:00:12.6]}
65. Kh1 {[%clk 0:00:26.9]} 65... f2 {[%clk 0:00:12.5]} 66. Kh2 {[%clk
0:00:27.3]} 66... Kh7 {[%clk 0:00:12.3]} 67. Kh3 {[%clk 0:00:26.6]} 67... f1=Q+
{[%clk 0:00:12.5]} 68. Kh2 {[%clk 0:00:27.5]} 68... Qg2# {[%clk 0:00:12.6]} 0-1